[Event "Early-Titled-Tuesday-Blitz-December-26-2023"]
[Site "Chess.com"]
[Date "2023.12.26"]
[Round "1"]
[White "JackRodgers"]
[Black "Alenzer"]
[Result "1-0"]
[WhiteElo "2563"]
[BlackElo "2072"]
[TimeControl "180+1"]
[EndTime "8:06:21 PST"]
[Termination "JackRodgers won by resignation"]

1. d4 {[%clk 0:03:00.9]} 1... d5 {[%clk 0:02:59.4]} 2. c4 {[%clk 0:03:00.1]}
2... dxc4 {[%clk 0:02:58.8]} 3. Nc3 {[%clk 0:02:59.6]} 3... a6 {[%clk
0:02:58.5]} 4. a4 {[%clk 0:02:59.4]} 4... Nf6 {[%clk 0:02:58.2]} 5. e4 {[%clk
0:02:59]} 5... e6 {[%clk 0:02:55.6]} 6. Bxc4 {[%clk 0:02:56.1]} 6... c6 {[%clk
0:02:41.3]} 7. Nge2 {[%clk 0:02:52.2]} 7... Bb4 {[%clk 0:02:29.8]} 8. O-O {[%clk
0:02:52.2]} 8... O-O {[%clk 0:02:29.2]} 9. Bg5 {[%clk 0:02:51.6]} 9... h6 {[%clk
0:02:28.5]} 10. Bxf6 {[%clk 0:02:51.2]} 10... Qxf6 {[%clk 0:02:27.8]} 11. e5
{[%clk 0:02:51.8]} 11... Qe7 {[%clk 0:02:22.3]} 12. Ne4 {[%clk 0:02:43.1]} 12...
Nd7 {[%clk 0:02:10.6]} 13. N2g3 {[%clk 0:02:41.9]} 13... Nb6 {[%clk 0:02:08]}
14. Bd3 {[%clk 0:02:38]} 14... Nd5 {[%clk 0:02:06.1]} 15. Nh5 {[%clk 0:02:37.3]}
15... g6 {[%clk 0:01:27.9]} 16. Nhf6+ {[%clk 0:02:28.6]} 16... Kg7 {[%clk
0:01:26.5]} 17. Qg4 {[%clk 0:02:23.7]} 17... Rh8 {[%clk 0:01:01.4]} 18. h4
{[%clk 0:02:17.1]} 18... h5 {[%clk 0:01:00.9]} 19. Qg5 {[%clk 0:02:13.6]} 19...
Bd7 {[%clk 0:00:52.8]} 20. Bc4 {[%clk 0:02:13.8]} 20... Qd8 {[%clk 0:00:28.7]}
21. Bxd5 {[%clk 0:01:55.9]} 21... exd5 {[%clk 0:00:26.5]} 22. Ng3 {[%clk
0:01:41.4]} 22... Kf8 {[%clk 0:00:18.3]} 23. f4 {[%clk 0:01:30.1]} 23... Be7
{[%clk 0:00:17.2]} 24. f5 {[%clk 0:01:29.4]} 24... Bxf6 {[%clk 0:00:13.7]} 25.
exf6 {[%clk 0:01:27.2]} 25... Rg8 {[%clk 0:00:08.6]} 26. Qh6+ {[%clk 0:01:24.2]}
26... Ke8 {[%clk 0:00:05.6]} 27. Rae1+ {[%clk 0:01:24.9]} 27... Be6 {[%clk
0:00:06.2]} 28. fxe6 {[%clk 0:01:19.3]} 28... fxe6 {[%clk 0:00:03.5]} 29. f7+
{[%clk 0:01:18.4]} 29... Ke7 {[%clk 0:00:04.1]} 30. fxg8=Q {[%clk 0:01:17.8]}
30... Qxg8 {[%clk 0:00:04.6]} 31. Qg5+ {[%clk 0:01:15.7]} 31... Kd7 {[%clk
0:00:04.7]} 32. Rf6 {[%clk 0:01:14.9]} 32... Re8 {[%clk 0:00:04.4]} 33. Rxg6
{[%clk 0:01:14]} 1-0

[Event "Early-Titled-Tuesday-Blitz-December-26-2023"]
[Site "Chess.com"]
[Date "2023.12.26"]
[Round "1"]
[White "PabloZarnicki"]
[Black "AndresDelgado77"]
[Result "1-0"]
[WhiteElo "2661"]
[BlackElo "2354"]
[TimeControl "180+1"]
[EndTime "8:06:23 PST"]
[Termination "PabloZarnicki won on time"]

1. e4 {[%clk 0:03:00.9]} 1... e6 {[%clk 0:02:54.8]} 2. d3 {[%clk 0:03:00.4]}
2... d5 {[%clk 0:02:54.1]} 3. Qe2 {[%clk 0:03:01]} 3... Be7 {[%clk 0:02:50.5]}
4. Nf3 {[%clk 0:03:00.4]} 4... Nf6 {[%clk 0:02:47.9]} 5. g3 {[%clk 0:02:59.7]}
5... dxe4 {[%clk 0:02:42.9]} 6. dxe4 {[%clk 0:02:59.3]} 6... b6 {[%clk
0:02:41.8]} 7. Nbd2 {[%clk 0:02:51.1]} 7... Ba6 {[%clk 0:02:36.1]} 8. Nc4 {[%clk
0:02:51.7]} 8... O-O {[%clk 0:02:26.5]} 9. e5 {[%clk 0:02:48.2]} 9... Nfd7
{[%clk 0:02:11.9]} 10. Qe4 {[%clk 0:02:38.6]} 10... Qc8 {[%clk 0:01:51.2]} 11.
Bd3 {[%clk 0:02:29.1]} 11... g6 {[%clk 0:01:47.3]} 12. Bh6 {[%clk 0:02:12.3]}
12... Bb7 {[%clk 0:01:44.4]} 13. Qf4 {[%clk 0:02:05.6]} 13... Re8 {[%clk
0:01:31.8]} 14. O-O-O {[%clk 0:01:42.5]} 14... b5 {[%clk 0:00:57]} 15. Na5
{[%clk 0:01:36.4]} 15... Bxf3 {[%clk 0:00:42.8]} 16. Qxf3 {[%clk 0:01:35]} 16...
c6 {[%clk 0:00:42.7]} 17. Rhe1 {[%clk 0:01:32.4]} 17... Qc7 {[%clk 0:00:41.4]}
18. Nb3 {[%clk 0:01:23.3]} 18... Nxe5 {[%clk 0:00:40.2]} 19. Qe4 {[%clk
0:01:05.6]} 19... Nxd3+ {[%clk 0:00:38.2]} 20. Qxd3 {[%clk 0:01:05.8]} 20... Rd8
{[%clk 0:00:36.8]} 21. Qc3 {[%clk 0:01:05.4]} 21... Bf8 {[%clk 0:00:29.8]} 22.
Bxf8 {[%clk 0:01:04.7]} 22... Rxf8 {[%clk 0:00:29.2]} 23. Nc5 {[%clk 0:01:03.5]}
23... a5 {[%clk 0:00:26.5]} 24. Ne4 {[%clk 0:01:00.7]} 24... e5 {[%clk
0:00:21.8]} 25. Rd6 {[%clk 0:00:58.2]} 25... f5 {[%clk 0:00:17]} 26. Qxe5 {[%clk
0:00:57.9]} 26... Qf7 {[%clk 0:00:10.5]} 27. Nf6+ {[%clk 0:00:56.4]} 27... Kh8
{[%clk 0:00:01.8]} 28. Nd7+ {[%clk 0:00:53.6]} 1-0

[Event "Early-Titled-Tuesday-Blitz-December-26-2023"]
[Site "Chess.com"]
[Date "2023.12.26"]
[Round "1"]
[White "sergoy"]
[Black "YurasovMat-2012"]
[Result "1-0"]
[WhiteElo "2939"]
[BlackElo "2522"]
[TimeControl "180+1"]
[EndTime "8:06:32 PST"]
[Termination "sergoy won on time"]

1. d4 {[%clk 0:03:00.9]} 1... d5 {[%clk 0:02:58.5]} 2. c4 {[%clk 0:03:01.1]}
2... c6 {[%clk 0:02:57.7]} 3. Nf3 {[%clk 0:03:01.7]} 3... Nf6 {[%clk 0:02:55.8]}
4. Nc3 {[%clk 0:03:02.1]} 4... dxc4 {[%clk 0:02:55.8]} 5. a4 {[%clk 0:03:01]}
5... Bf5 {[%clk 0:02:55.5]} 6. Ne5 {[%clk 0:03:01.3]} 6... e6 {[%clk 0:02:49.7]}
7. f3 {[%clk 0:03:01.1]} 7... Bb4 {[%clk 0:02:48.2]} 8. Nxc4 {[%clk 0:02:56.4]}
8... c5 {[%clk 0:02:35.7]} 9. dxc5 {[%clk 0:02:56.3]} 9... Qxd1+ {[%clk
0:02:32.9]} 10. Kxd1 {[%clk 0:02:57.2]} 10... Bxc5 {[%clk 0:02:32.3]} 11. e4
{[%clk 0:02:57.5]} 11... Bg6 {[%clk 0:02:32.2]} 12. Nb5 {[%clk 0:02:53.9]} 12...
Na6 {[%clk 0:01:54.6]} 13. Ncd6+ {[%clk 0:02:41.7]} 13... Ke7 {[%clk 0:01:53.8]}
14. Nxb7 {[%clk 0:02:33.9]} 14... Bb4 {[%clk 0:01:42.1]} 15. Nd4 {[%clk
0:02:24.7]} 15... Nb8 {[%clk 0:01:34.8]} 16. Be3 {[%clk 0:02:12.7]} 16... Rc8
{[%clk 0:00:33.9]} 17. h4 {[%clk 0:02:06.4]} 17... Nbd7 {[%clk 0:00:24.1]} 18.
g4 {[%clk 0:01:53.6]} 18... h6 {[%clk 0:00:20.9]} 19. Ba6 {[%clk 0:01:45.1]}
19... Rab8 {[%clk 0:00:16.6]} 20. Nc2 {[%clk 0:01:25.8]} 20... Rxc2 {[%clk
0:00:09.1]} 21. Kxc2 {[%clk 0:01:26.7]} 21... Nxe4 {[%clk 0:00:09.2]} 22. Bd3
{[%clk 0:01:02.3]} 22... Nef6 {[%clk 0:00:03.1]} 23. Bxg6 {[%clk 0:00:44.9]}
23... fxg6 {[%clk 0:00:03.1]} 24. Bxa7 {[%clk 0:00:44.6]} 24... Rxb7 {[%clk
0:00:03.5]} 25. Bd4 {[%clk 0:00:45.4]} 25... e5 {[%clk 0:00:03.2]} 26. Bf2
{[%clk 0:00:45.2]} 26... Nc5 {[%clk 0:00:02.2]} 27. a5 {[%clk 0:00:45.5]} 27...
Nd5 {[%clk 0:00:01.7]} 28. a6 {[%clk 0:00:44.2]} 28... Ra7 {[%clk 0:00:01.6]}
29. Rhd1 {[%clk 0:00:44.6]} 1-0

[Event "Early-Titled-Tuesday-Blitz-December-26-2023"]
[Site "Chess.com"]
[Date "2023.12.26"]
[Round "1"]
[White "secrethawk1"]
[Black "LikeWater"]
[Result "0-1"]
[WhiteElo "2433"]
[BlackElo "2738"]
[TimeControl "180+1"]
[EndTime "8:06:35 PST"]
[Termination "LikeWater won by checkmate"]

1. d4 {[%clk 0:02:59.7]} 1... Nf6 {[%clk 0:02:59.7]} 2. Bf4 {[%clk 0:02:58.7]}
2... b6 {[%clk 0:02:56.8]} 3. e3 {[%clk 0:02:56.4]} 3... Bb7 {[%clk 0:02:57.2]}
4. Nf3 {[%clk 0:02:56]} 4... g6 {[%clk 0:02:54.7]} 5. c4 {[%clk 0:02:54.7]} 5...
Bg7 {[%clk 0:02:54.4]} 6. Nc3 {[%clk 0:02:54.5]} 6... O-O {[%clk 0:02:52.3]} 7.
h3 {[%clk 0:02:54.1]} 7... d5 {[%clk 0:02:51.6]} 8. Be2 {[%clk 0:02:48]} 8... c5
{[%clk 0:02:51.4]} 9. O-O {[%clk 0:02:45.9]} 9... cxd4 {[%clk 0:02:45.3]} 10.
Nxd4 {[%clk 0:02:43]} 10... dxc4 {[%clk 0:02:44.8]} 11. Bxc4 {[%clk 0:02:42.2]}
11... a6 {[%clk 0:02:40.9]} 12. a4 {[%clk 0:02:37.7]} 12... Nbd7 {[%clk
0:02:40.9]} 13. Bh2 {[%clk 0:02:33.7]} 13... e5 {[%clk 0:02:31]} 14. Nf3 {[%clk
0:02:29.2]} 14... Qe7 {[%clk 0:02:09]} 15. Qb3 {[%clk 0:02:21.9]} 15... Bxf3
{[%clk 0:02:02.6]} 16. gxf3 {[%clk 0:02:22.8]} 16... Nh5 {[%clk 0:01:38.5]} 17.
Rad1 {[%clk 0:02:15.8]} 17... Nc5 {[%clk 0:01:33.5]} 18. Qxb6 {[%clk 0:02:13.4]}
18... Rab8 {[%clk 0:01:29.5]} 19. Qa5 {[%clk 0:01:49.6]} 19... Rxb2 {[%clk
0:01:18.7]} 20. Nd5 {[%clk 0:01:30.9]} 20... Qg5+ {[%clk 0:01:16.7]} 21. Kh1
{[%clk 0:01:29.8]} 21... Ne6 {[%clk 0:01:17.3]} 22. Qxa6 {[%clk 0:00:55.7]}
22... Qh4 {[%clk 0:01:11.3]} 23. Kg2 {[%clk 0:00:53.3]} 23... Ng5 {[%clk
0:01:04]} 24. Be2 {[%clk 0:00:20.9]} 24... Qxh3+ {[%clk 0:01:03.6]} 25. Kg1
{[%clk 0:00:20.6]} 25... Rxe2 {[%clk 0:01:04.1]} 26. Ne7+ {[%clk 0:00:11.8]}
26... Kh8 {[%clk 0:01:03.9]} 27. Nxg6+ {[%clk 0:00:11.2]} 27... hxg6 {[%clk
0:01:02.7]} 28. Qxe2 {[%clk 0:00:07.4]} 28... Nxf3+ {[%clk 0:01:02.5]} 29. Qxf3
{[%clk 0:00:05.9]} 29... Qxf3 {[%clk 0:01:03.4]} 30. a5 {[%clk 0:00:04.3]} 30...
Ra8 {[%clk 0:01:01.7]} 31. Rb1 {[%clk 0:00:01.8]} 31... Rxa5 {[%clk 0:01:00.9]}
32. Rb2 {[%clk 0:00:01.7]} 32... e4 {[%clk 0:00:59.4]} 33. Rb8+ {[%clk
0:00:01.1]} 33... Kh7 {[%clk 0:00:59.9]} 34. Re1 {[%clk 0:00:01.1]} 34... Rg5+
{[%clk 0:00:59.1]} 35. Kf1 {[%clk 0:00:01.2]} 35... Rg2 {[%clk 0:00:59.1]} 36.
Bg3 {[%clk 0:00:01.3]} 36... Nxg3# {[%clk 0:00:59.1]} 0-1

[Event "Early-Titled-Tuesday-Blitz-December-26-2023"]
[Site "Chess.com"]
[Date "2023.12.26"]
[Round "1"]
[White "TitarovVasiliYouTube"]
[Black "Jospem"]
[Result "0-1"]
[WhiteElo "2549"]
[BlackElo "3067"]
[TimeControl "180+1"]
[EndTime "8:06:37 PST"]
[Termination "Jospem won on time"]

1. e4 {[%clk 0:03:00.9]} 1... c5 {[%clk 0:02:58.7]} 2. Nf3 {[%clk 0:03:00.9]}
2... d6 {[%clk 0:02:57]} 3. d4 {[%clk 0:03:00.7]} 3... cxd4 {[%clk 0:02:57.9]}
4. Nxd4 {[%clk 0:03:01.6]} 4... a6 {[%clk 0:02:58.1]} 5. Nc3 {[%clk 0:02:59.7]}
5... e6 {[%clk 0:02:58.6]} 6. Be2 {[%clk 0:02:58.7]} 6... Nf6 {[%clk 0:02:56.5]}
7. O-O {[%clk 0:02:58.6]} 7... b5 {[%clk 0:02:52.4]} 8. a3 {[%clk 0:02:39.9]}
8... Bb7 {[%clk 0:02:51.7]} 9. f3 {[%clk 0:02:34.6]} 9... Nbd7 {[%clk
0:02:51.6]} 10. Be3 {[%clk 0:02:33.6]} 10... Be7 {[%clk 0:02:51.6]} 11. Qd2
{[%clk 0:02:33.9]} 11... O-O {[%clk 0:02:51.8]} 12. Rad1 {[%clk 0:02:30.3]}
12... Rc8 {[%clk 0:02:50.6]} 13. Rfe1 {[%clk 0:02:19.5]} 13... Nb6 {[%clk
0:02:41.1]} 14. Nb3 {[%clk 0:02:15.2]} 14... Nfd7 {[%clk 0:02:39.2]} 15. f4
{[%clk 0:02:01.8]} 15... Qc7 {[%clk 0:02:34.3]} 16. Kh1 {[%clk 0:01:54.3]} 16...
d5 {[%clk 0:02:28.6]} 17. e5 {[%clk 0:01:13.4]} 17... Rfd8 {[%clk 0:02:26.9]}
18. Bd4 {[%clk 0:01:08.1]} 18... Nc4 {[%clk 0:02:27]} 19. Qc1 {[%clk 0:01:04.5]}
19... Nc5 {[%clk 0:02:26.8]} 20. Nxc5 {[%clk 0:01:02.3]} 20... Bxc5 {[%clk
0:02:27.7]} 21. Nb1 {[%clk 0:00:48.7]} 21... Qb6 {[%clk 0:02:21.2]} 22. c3
{[%clk 0:00:47.9]} 22... Bxd4 {[%clk 0:02:21.4]} 23. Rxd4 {[%clk 0:00:48.7]}
23... Na5 {[%clk 0:02:19]} 24. Nd2 {[%clk 0:00:47.6]} 24... Nc6 {[%clk
0:02:17.9]} 25. Rd3 {[%clk 0:00:45]} 25... d4 {[%clk 0:02:18.5]} 26. Bf3 {[%clk
0:00:43.1]} 26... dxc3 {[%clk 0:02:17.8]} 27. Rxc3 {[%clk 0:00:41.9]} 27... Ne7
{[%clk 0:02:09.8]} 28. Bxb7 {[%clk 0:00:38.9]} 28... Qxb7 {[%clk 0:02:10.7]} 29.
Ne4 {[%clk 0:00:35.7]} 29... Rxc3 {[%clk 0:02:10.4]} 30. Qxc3 {[%clk 0:00:35.6]}
30... Nf5 {[%clk 0:02:10.2]} 31. Nc5 {[%clk 0:00:30.3]} 31... Qc6 {[%clk
0:02:05.2]} 32. b4 {[%clk 0:00:30.1]} 32... h5 {[%clk 0:02:04]} 33. Rc1 {[%clk
0:00:26.3]} 33... Qd5 {[%clk 0:01:59.4]} 34. Qe1 {[%clk 0:00:17.6]} 34... Qd4
{[%clk 0:01:57.2]} 35. Ne4 {[%clk 0:00:09.4]} 35... h4 {[%clk 0:01:53.2]} 36.
Qe2 {[%clk 0:00:06.2]} 36... h3 {[%clk 0:01:53.5]} 37. gxh3 {[%clk 0:00:04.9]}
37... Qd5 {[%clk 0:01:52.2]} 38. Qg2 {[%clk 0:00:03.8]} 38... Kf8 {[%clk
0:01:52.4]} 39. Re1 {[%clk 0:00:03.3]} 39... Qd4 {[%clk 0:01:47.7]} 40. Ng5
{[%clk 0:00:03.3]} 40... Qxf4 {[%clk 0:01:40.5]} 41. Rf1 {[%clk 0:00:02.9]}
41... Qh4 {[%clk 0:01:34.4]} 42. Ne4 {[%clk 0:00:02.5]} 42... Ne3 {[%clk
0:01:31]} 43. Qf3 {[%clk 0:00:01.8]} 43... Nxf1 {[%clk 0:01:30.3]} 44. Nd6
{[%clk 0:00:02]} 44... Qe7 {[%clk 0:01:16.6]} 45. Qxf1 {[%clk 0:00:01.8]} 45...
Kg8 {[%clk 0:01:17.3]} 0-1

[Event "Early-Titled-Tuesday-Blitz-December-26-2023"]
[Site "Chess.com"]
[Date "2023.12.26"]
[Round "1"]
[White "Ramosha"]
[Black "szefru"]
[Result "1-0"]
[WhiteElo "2614"]
[BlackElo "2266"]
[TimeControl "180+1"]
[EndTime "8:06:49 PST"]
[Termination "Ramosha won by resignation"]

1. e4 {[%clk 0:02:56.8]} 1... c5 {[%clk 0:02:57.6]} 2. Nf3 {[%clk 0:02:57.4]}
2... Nc6 {[%clk 0:02:57.7]} 3. d4 {[%clk 0:02:57.8]} 3... cxd4 {[%clk 0:02:58]}
4. Nxd4 {[%clk 0:02:58.7]} 4... g6 {[%clk 0:02:58.2]} 5. Be2 {[%clk 0:02:56.7]}
5... Bg7 {[%clk 0:02:57.3]} 6. Nb3 {[%clk 0:02:57.4]} 6... Nf6 {[%clk
0:02:56.1]} 7. Nc3 {[%clk 0:02:58.1]} 7... O-O {[%clk 0:02:54.5]} 8. Be3 {[%clk
0:02:58.7]} 8... d6 {[%clk 0:02:42.3]} 9. Qd2 {[%clk 0:02:57.9]} 9... a6 {[%clk
0:02:39.3]} 10. a4 {[%clk 0:02:57.7]} 10... Rb8 {[%clk 0:02:38.5]} 11. a5 {[%clk
0:02:57.8]} 11... Be6 {[%clk 0:02:38.1]} 12. O-O {[%clk 0:02:56.6]} 12... Bxb3
{[%clk 0:02:35.7]} 13. cxb3 {[%clk 0:02:57.5]} 13... Qd7 {[%clk 0:02:27.3]} 14.
f3 {[%clk 0:02:52.2]} 14... Qe6 {[%clk 0:02:21.4]} 15. Bc4 {[%clk 0:02:48.7]}
15... Qd7 {[%clk 0:02:16.4]} 16. Na4 {[%clk 0:02:47.4]} 16... b5 {[%clk
0:02:08.9]} 17. axb6 {[%clk 0:02:44.2]} 17... a5 {[%clk 0:02:09.1]} 18. Rac1
{[%clk 0:02:43]} 18... Nb4 {[%clk 0:02:07.1]} 19. Rfd1 {[%clk 0:02:34.9]} 19...
Rfc8 {[%clk 0:02:05]} 20. Qe2 {[%clk 0:02:19.4]} 20... Qd8 {[%clk 0:01:47.4]}
21. Bb5 {[%clk 0:02:15]} 21... Nd7 {[%clk 0:01:46.7]} 22. Rc4 {[%clk 0:02:00.1]}
22... Rxc4 {[%clk 0:01:37.3]} 23. bxc4 {[%clk 0:02:01]} 23... Nxb6 {[%clk
0:01:17.9]} 24. Nxb6 {[%clk 0:01:51.7]} 24... Rxb6 {[%clk 0:01:18.8]} 25. Bxb6
{[%clk 0:01:52.1]} 25... Qxb6+ {[%clk 0:01:17.9]} 26. Kf1 {[%clk 0:01:51.6]}
26... Bd4 {[%clk 0:01:16.4]} 27. b3 {[%clk 0:01:49.5]} 27... e5 {[%clk
0:01:15.7]} 28. g3 {[%clk 0:01:41.5]} 28... Bc5 {[%clk 0:01:12]} 29. h4 {[%clk
0:01:40.5]} 29... h5 {[%clk 0:01:07.1]} 30. Kg2 {[%clk 0:01:39.7]} 30... Kg7
{[%clk 0:01:05.5]} 31. Qd2 {[%clk 0:01:39]} 31... Bd4 {[%clk 0:00:55.6]} 32. Ba4
{[%clk 0:01:35.9]} 32... Qc5 {[%clk 0:00:53.1]} 33. g4 {[%clk 0:01:33.1]} 33...
hxg4 {[%clk 0:00:44.9]} 34. fxg4 {[%clk 0:01:34]} 34... Qc8 {[%clk 0:00:44.2]}
35. Kh3 {[%clk 0:01:32.7]} 35... Qb7 {[%clk 0:00:30.4]} 36. Qe2 {[%clk
0:01:29.5]} 36... Na6 {[%clk 0:00:26.2]} 37. Rf1 {[%clk 0:01:25.5]} 37... Nc5
{[%clk 0:00:25.4]} 38. Re1 {[%clk 0:01:23.9]} 38... Nxa4 {[%clk 0:00:21.2]} 39.
bxa4 {[%clk 0:01:24.8]} 39... Qb3+ {[%clk 0:00:21.7]} 40. Kg2 {[%clk 0:01:24.5]}
40... Qxa4 {[%clk 0:00:21.9]} 41. Rf1 {[%clk 0:01:24.8]} 41... Qb4 {[%clk
0:00:18]} 42. Qf3 {[%clk 0:01:24.4]} 42... Qb7 {[%clk 0:00:18.2]} 43. h5 {[%clk
0:01:24.6]} 43... gxh5 {[%clk 0:00:14]} 44. gxh5 {[%clk 0:01:25.5]} 44... Kf8
{[%clk 0:00:11.4]} 45. h6 {[%clk 0:01:25.2]} 45... Qb2+ {[%clk 0:00:10]} 46. Kh3
{[%clk 0:01:25.2]} 46... Qb7 {[%clk 0:00:08.3]} 47. h7 {[%clk 0:01:24.4]} 47...
Kg7 {[%clk 0:00:08.7]} 48. Qxf7+ {[%clk 0:01:19.3]} 48... Qxf7 {[%clk
0:00:08.1]} 49. Rxf7+ {[%clk 0:01:20.2]} 49... Kxf7 {[%clk 0:00:08.9]} 50. h8=Q
{[%clk 0:01:20.2]} 50... Bc5 {[%clk 0:00:09.1]} 51. Qa8 {[%clk 0:01:20.7]} 51...
Bb4 {[%clk 0:00:08.7]} 52. Kg4 {[%clk 0:01:21.3]} 52... Ke6 {[%clk 0:00:08.9]}
53. Qd5+ {[%clk 0:01:21.2]} 53... Kd7 {[%clk 0:00:08.1]} 54. Kf5 {[%clk
0:01:22.1]} 54... a4 {[%clk 0:00:08]} 55. Qb5+ {[%clk 0:01:23]} 55... Ke7 {[%clk
0:00:07.8]} 56. Qxb4 {[%clk 0:01:23.8]} 1-0

[Event "Early-Titled-Tuesday-Blitz-December-26-2023"]
[Site "Chess.com"]
[Date "2023.12.26"]
[Round "1"]
[White "Magila31"]
[Black "AlexPapasimakopoulos"]
[Result "1-0"]
[WhiteElo "2347"]
[BlackElo "2639"]
[TimeControl "180+1"]
[EndTime "8:06:52 PST"]
[Termination "Magila31 won by checkmate"]

1. Nf3 {[%clk 0:02:59]} 1... d5 {[%clk 0:02:57.6]} 2. c4 {[%clk 0:02:58.2]} 2...
e6 {[%clk 0:02:52.5]} 3. g3 {[%clk 0:02:57.3]} 3... Nf6 {[%clk 0:02:52.2]} 4.
Bg2 {[%clk 0:02:57.3]} 4... Be7 {[%clk 0:02:50.1]} 5. O-O {[%clk 0:02:57.2]}
5... O-O {[%clk 0:02:48.3]} 6. d4 {[%clk 0:02:54.5]} 6... c6 {[%clk 0:02:46.5]}
7. Qc2 {[%clk 0:02:53.2]} 7... Nbd7 {[%clk 0:02:35.3]} 8. Bf4 {[%clk 0:02:49.9]}
8... b6 {[%clk 0:02:34]} 9. Nbd2 {[%clk 0:02:39.8]} 9... Bb7 {[%clk 0:02:32.8]}
10. Rfc1 {[%clk 0:02:36.3]} 10... Rc8 {[%clk 0:02:32.2]} 11. Qa4 {[%clk
0:02:30.7]} 11... a6 {[%clk 0:02:30.9]} 12. Qb3 {[%clk 0:02:19.5]} 12... Nh5
{[%clk 0:02:29.7]} 13. Be3 {[%clk 0:02:18.6]} 13... f5 {[%clk 0:02:29.4]} 14.
Bf4 {[%clk 0:02:06.9]} 14... Nxf4 {[%clk 0:02:26.5]} 15. gxf4 {[%clk 0:02:06.6]}
15... Bd6 {[%clk 0:02:22.8]} 16. Ne5 {[%clk 0:02:01.3]} 16... Bxe5 {[%clk
0:02:05.9]} 17. dxe5 {[%clk 0:01:57.8]} 17... g5 {[%clk 0:01:57.2]} 18. cxd5
{[%clk 0:01:45.3]} 18... cxd5 {[%clk 0:01:55.8]} 19. e3 {[%clk 0:01:39]} 19...
gxf4 {[%clk 0:01:54.5]} 20. exf4 {[%clk 0:01:38.5]} 20... Qe7 {[%clk 0:01:50.4]}
21. Nf3 {[%clk 0:01:36.9]} 21... Rc5 {[%clk 0:01:43.4]} 22. Nd4 {[%clk
0:01:34.9]} 22... Kf7 {[%clk 0:01:39.7]} 23. Qh3 {[%clk 0:01:31.3]} 23... Kg7
{[%clk 0:01:36.2]} 24. b4 {[%clk 0:01:29]} 24... Rcc8 {[%clk 0:01:30.2]} 25. a3
{[%clk 0:01:28.4]} 25... Rg8 {[%clk 0:01:24.6]} 26. Kh1 {[%clk 0:01:26.6]} 26...
Kh8 {[%clk 0:01:23.8]} 27. Bf3 {[%clk 0:01:26.1]} 27... Rxc1+ {[%clk 0:01:18.7]}
28. Rxc1 {[%clk 0:01:25.2]} 28... Rc8 {[%clk 0:01:19.1]} 29. Rxc8+ {[%clk
0:01:23.8]} 29... Bxc8 {[%clk 0:01:20]} 30. Qh6 {[%clk 0:01:23.9]} 30... Nf8
{[%clk 0:01:19.6]} 31. Be2 {[%clk 0:01:11.3]} 31... a5 {[%clk 0:01:15.4]} 32.
bxa5 {[%clk 0:00:56.5]} 32... bxa5 {[%clk 0:01:14.4]} 33. a4 {[%clk 0:00:56.7]}
33... Bd7 {[%clk 0:01:07]} 34. Bb5 {[%clk 0:00:56.3]} 34... Bxb5 {[%clk
0:00:51.6]} 35. axb5 {[%clk 0:00:55.6]} 35... a4 {[%clk 0:00:51]} 36. Qh3 {[%clk
0:00:52.5]} 36... Qb4 {[%clk 0:00:48.7]} 37. Qd3 {[%clk 0:00:32.2]} 37... a3
{[%clk 0:00:46.8]} 38. Nc2 {[%clk 0:00:31.7]} 38... Qb1+ {[%clk 0:00:44.5]} 39.
Kg2 {[%clk 0:00:30.7]} 39... a2 {[%clk 0:00:44.9]} 40. Qc3 {[%clk 0:00:29.9]}
40... Qxb5 {[%clk 0:00:34.6]} 41. Qa3 {[%clk 0:00:30.1]} 41... Qc4 {[%clk
0:00:32.4]} 42. Qxf8# {[%clk 0:00:29.4]} 1-0

[Event "Early-Titled-Tuesday-Blitz-December-26-2023"]
[Site "Chess.com"]
[Date "2023.12.26"]
[Round "1"]
[White "albi1999"]
[Black "LuisFSiles"]
[Result "1-0"]
[WhiteElo "2621"]
[BlackElo "2271"]
[TimeControl "180+1"]
[EndTime "8:06:53 PST"]
[Termination "albi1999 won on time"]

1. d4 {[%clk 0:02:54.5]} 1... Nf6 {[%clk 0:02:57.8]} 2. Nf3 {[%clk 0:02:53.9]}
2... d6 {[%clk 0:02:55.4]} 3. Nc3 {[%clk 0:02:53]} 3... Bf5 {[%clk 0:02:54.2]}
4. Nh4 {[%clk 0:02:50.2]} 4... Bd7 {[%clk 0:02:53.6]} 5. e4 {[%clk 0:02:49.7]}
5... e5 {[%clk 0:02:52.9]} 6. Nf3 {[%clk 0:02:45.8]} 6... Nc6 {[%clk 0:02:51.5]}
7. Be2 {[%clk 0:02:44.6]} 7... exd4 {[%clk 0:02:46.3]} 8. Nxd4 {[%clk
0:02:44.8]} 8... g6 {[%clk 0:02:46.9]} 9. Bg5 {[%clk 0:02:39.8]} 9... Bg7 {[%clk
0:02:46.5]} 10. O-O {[%clk 0:02:31.6]} 10... h6 {[%clk 0:02:43.8]} 11. Bh4
{[%clk 0:02:28.7]} 11... O-O {[%clk 0:02:38.6]} 12. Nb3 {[%clk 0:02:23.1]} 12...
Re8 {[%clk 0:02:20.1]} 13. Bd3 {[%clk 0:02:22.4]} 13... Ne5 {[%clk 0:02:18.3]}
14. f4 {[%clk 0:02:16.8]} 14... Nxd3 {[%clk 0:02:14.9]} 15. cxd3 {[%clk
0:02:17.7]} 15... g5 {[%clk 0:02:05.1]} 16. fxg5 {[%clk 0:02:08.5]} 16... Ng4
{[%clk 0:02:03.9]} 17. Qd2 {[%clk 0:02:06.1]} 17... a5 {[%clk 0:01:28.2]} 18. h3
{[%clk 0:01:52.8]} 18... a4 {[%clk 0:01:21]} 19. Nc1 {[%clk 0:01:30.1]} 19...
Bd4+ {[%clk 0:01:18.5]} 20. Kh1 {[%clk 0:01:28.7]} 20... Be3 {[%clk 0:01:15.3]}
21. Qe1 {[%clk 0:01:20.1]} 21... hxg5 {[%clk 0:00:53.9]} 22. hxg4 {[%clk
0:01:14.3]} 22... Bxc1 {[%clk 0:00:53.5]} 23. Qxc1 {[%clk 0:00:59.6]} 23... gxh4
{[%clk 0:00:52.7]} 24. Nd5 {[%clk 0:00:57.1]} 24... Re6 {[%clk 0:00:48.3]} 25.
Qf4 {[%clk 0:00:46.1]} 25... Be8 {[%clk 0:00:27]} 26. g5 {[%clk 0:00:44.4]}
26... Re5 {[%clk 0:00:16.3]} 27. Nf6+ {[%clk 0:00:43.2]} 27... Kf8 {[%clk
0:00:14.1]} 28. Qxh4 {[%clk 0:00:42.5]} 28... Ke7 {[%clk 0:00:14.3]} 29. d4
{[%clk 0:00:41.5]} 29... Rb5 {[%clk 0:00:13.5]} 30. Nd5+ {[%clk 0:00:27.3]}
30... Kd7 {[%clk 0:00:13.3]} 31. Qg4+ {[%clk 0:00:26.1]} 31... Kc6 {[%clk
0:00:03.3]} 32. Rac1+ {[%clk 0:00:26.5]} 1-0